Cogmind - Beta 11.1 @@@ ROGUE MODE // 2022.07.04 @ 19:04:55 Player: Cyurio Result: Destroyed by Y-45 Defender with Heavy Assault Rifle Performance ------------- Evolutions (1) 500 Regions Visited (4) 800 Robots Destroyed (54) 270 Value Destroyed (1445) 1445 Prototype IDs (4) 80 Alien Tech Used (0) 0 Bonus (28) 28 TOTAL SCORE: 3123 Bonus ------- High Alert Combat Kills 28 Cogmind --------- Core Integrity 0/400 Matter 271/300 Energy 100/100 System Corruption 3% Temperature Cool (9) Movement Walking (120) Location -9/Storage Parts ------- > --- POWER (1) -------- (None) > --- PROPULSION (2) --- Improved Aluminum Leg Improved Aluminum Leg > --- UTILITY (4) ------ Large Storage Unit Signal Interpreter Targeting Computer Targeting Computer > --- WEAPON (2) ------- Heavy Assault Rifle Heavy Assault Rifle > --- INVENTORY (15) --- Light Nuclear Core Improved Aluminum Leg Hover Unit Hover Unit Hover Unit Hover Unit Improved Hover Unit Improved Hover Unit Improved Hover Unit Improved Hover Unit Improved Flight Unit Improved Flight Unit Medium Storage Unit ECM Suite Rocket Launcher Peak State ------------ > --- POWER ------------ Improved Ion Engine > --- PROPULSION ------- Improved Aluminum Leg Improved Aluminum Leg > --- UTILITY ---------- Large Storage Unit Signal Interpreter Targeting Computer Targeting Computer > --- WEAPON ----------- Heavy Assault Rifle Heavy Assault Rifle > --- INVENTORY -------- Light Nuclear Core Improved Aluminum Leg Improved Aluminum Leg Improved Aluminum Leg Hover Unit Hover Unit Hover Unit Hover Unit Improved Hover Unit Improved Hover Unit Medium Storage Unit ECM Suite Rocket Launcher [Rating: 16] Favorites ----------- Power Ion Engine Engine Ion Engine Propulsion Aluminum Leg Leg Aluminum Leg Wheel Compact Wheel Utility Targeting Computer Device Heat Sink Storage Large Storage Unit Processor Targeting Computer Weapon Heavy Assault Rifle Energy Gun Medium Laser Energy Cannon Light EM Pulse Cannon Ballistic Gun Heavy Assault Rifle Ballistic Cannon Light Cannon Launcher Rocket Launcher Build | -11 -10 -10 -9 -9 ------- Run | Scr Mat Min Mat Sto Slots Evolved 2 | . . . 2 . Power . | . . . . . Propulsion . | . . . . . Utility 2 | . . . 2 . Weapon . | . . . . . Parts Attached 40 | . 7 2 16 15 Power 5 | . 1 . 2 2 Engine 5 | . 1 . 2 2 Core . | . . . . . Reactor . | . . . . . Propulsion 12 | . 4 2 2 4 Treads . | . . . . . Leg 11 | . 4 2 1 4 Wheel 1 | . . . 1 . Hover . | . . . . . Flight . | . . . . . Utility 5 | . 1 . 4 . Device 1 | . . . 1 . Storage 1 | . . . 1 . Processor 3 | . 1 . 2 . Hackware . | . . . . . Protection . | . . . . . Artifact . | . . . . . Weapon 18 | . 1 . 8 9 Energy Gun 2 | . . . 2 . Energy Cannon 1 | . . . 1 . Ballistic Gun 12 | . . . 5 7 Ballistic Cannon 1 | . 1 . . . Launcher 2 | . . . . 2 Special Weapon . | . . . . . Impact Weapon . | . . . . . Slashing Weapon . | . . . . . Piercing Weapon . | . . . . . Special Melee Weapon . | . . . . . Unidentified Prototypes . | . . . . . Parts Lost 10 | . . . 4 6 Power 3 | . . . . 3 Propulsion 1 | . . . . 1 Utility 1 | . . . 1 . Weapon 5 | . . . 3 2 Highest Loss Streak 3 | . . . 3 3 To Critical Strikes . | . . . . . Average Slot Usage (%) 95 | . 92 100 94 99 Engine 12 | . 14 14 11 10 Leg 20 | . 28 28 14 15 Wheel 4 | . . . 7 6 Device 1 | . . . 6 . Storage 12 | . 14 14 11 11 Processor 19 | . 7 14 21 33 Energy Gun 1 | . . . 3 1 Ballistic Gun 16 | . 16 14 13 20 Ballistic Cannon 5 | . 11 14 3 . Naked Turns . | . . . . . Heaviest Build 34 | 11 14 14 33 34 Greatest Support 26 | 20 20 20 23 26 Greatest Overweight (x) 2 | . . . 2 2 Average Overweight (x) . | . . . . 1 Largest Inventory Capacity 15 | . 8 8 15 15 Average Capacity 11 | . 8 8 13 15 Most Carried 15 | . 8 8 15 15 Average Carried 10 | . 7 8 9 14 Final Capacity 15 | 8 8 8 15 15 Final Carried 15 | 6 8 8 15 15 Class Distribution -------------------- 99% | Mutant Dominant Class ---------------- Mutant | -10/Materials Mutant | -10/Mines Mutant | -9/Materials Mutant | -9/Storage Resources | -11 -10 -10 -9 -9 ----------- Run | Scr Mat Min Mat Sto Matter Collected 1246 | 200 288 60 275 423 Remotely . | . . . . . Salvage Created 1836 | . 443 64 613 716 Parts 119 | . 31 3 42 43 Haulers Intercepted 6 | . 2 . 2 2 Recyclers Shooed . | . . . . . Parts Field Recycled . | . . . . . Retrieved Matter . | . . . . . Parts Self-Destructed . | . . . . . Prevented . | . . . . . Kills | -11 -10 -10 -9 -9 ------- Run | Scr Mat Min Mat Sto Combat Hostiles Destroyed 42 | . 10 2 12 18 Guns 30 | . 6 . 9 15 Cannons 9 | . 4 2 3 . AOE 3 | . . . . 3 Classes Destroyed 6 | . 3 . 3 . Worker 4 | . . . 3 1 Hauler 6 | . 2 . 2 2 Watcher 2 | . 1 . 1 . Swarmer 10 | . . . 3 7 Grunt 21 | . 10 2 5 4 Sentry 11 | . . . 4 7 Best Kill Streak 5 | . 2 2 5 4 Combat Bots Only 4 | . 2 2 4 4 Max Kills in Single Turn 2 | . 1 1 1 2 Gunslinging 1 | . . . . 1 Exploded 2 | . . . . 2 Melee . | . . . . . Uniques/NPCs Destroyed . | . . . . . Combat | -11 -10 -10 -9 -9 -------- Run | Scr Mat Min Mat Sto Damage Taken 2031 | . 319 150 743 819 Core 547 | . 84 59 160 244 Absorbed by Shields . | . . . . . Core Remaining (%) 71 | 100 . 42 . . Volleys Fired 149 | . 47 8 48 46 Largest 2 | . 2 2 2 2 Hottest 79 | . 55 55 79 73 Shots Fired 292 | . 94 16 93 89 Gun 232 | . 64 8 74 86 Cannon 57 | . 30 8 19 . Launcher 3 | . . . . 3 Special . | . . . . . Kinetic 254 | . 94 16 70 74 Thermal 31 | . . . 19 12 Explosive 3 | . . . . 3 Electromagnetic 4 | . . . 4 . Robot Hit Streak 15 | . 15 8 11 13 Robot Miss Streak 5 | . 2 2 5 2 Penetration Max . | . . . . . Secondary Targets 3 | . 1 . . 2 Max Gunslinging Chain 1 | . 1 . . 1 Shots Hit Robots 219 | . 72 12 65 70 Core Hits 91 | . 28 3 28 32 Critical Kills . | . . . . . Critical Parts Destroyed . | . . . . . Critical Strikes 7 | . 2 1 2 2 Burn 2 | . . . 1 1 Destroy 1 | . . . . 1 Blast 4 | . 2 1 1 . Melee Attacks . | . . . . . Impact . | . . . . . Slashing . | . . . . . Piercing . | . . . . . Sneak Attacks . | . . . . . Combat Hostiles . | . . . . . Follow-up Attacks . | . . . . . Damage Inflicted 3521 | . 916 160 1166 1279 Guns 2153 | . 424 35 689 1005 Cannons 918 | . 492 125 301 . Explosions 450 | . . . 176 274 Melee . | . . . . . Ramming . | . . . . . Kinetic 2715 | . 916 160 722 917 Thermal 439 | . . . 351 88 Explosive 274 | . . . . 274 Electromagnetic 93 | . . . 93 . Impact . | . . . . . Slashing . | . . . . . Piercing . | . . . . . Highest Corruption 3 | . . . . 3 Average Corruption 2 | . . . . 2 Corruption Purged . | . . . . . Corruption Blocked . | . . . . . Effects 2 | . . . . 2 Matter Fused 1 | . . . . 1 Heat Flow Errors 1 | . . . . 1 Overload Shots . | . . . . . Overflow Damage 39 | . . . 19 20 Projectiles . | . . . . . Explosions 39 | . . . 19 20 Melee . | . . . . . Knockbacks 10 | . 5 1 4 . Impact . | . . . . . Kinetic 10 | . 5 1 4 . Secondary . | . . . . . Self-Inflicted Damage 52 | . . . 52 . Shots 1 | . . . 1 . Rammed . | . . . . . Targets Rammed . | . . . . . Kicked . | . . . . . Crushed . | . . . . . Highest Temperature 271 | . 50 88 48 271 Average Temperature 34 | . 13 42 14 75 Received Heat Transfer 891 | . 183 102 342 264 Effects 1 | . . . . 1 Energy Bleed 1 | . . . . 1 Siege Activations . | . . . . . Robots Corrupted . | . . . . . Combat Hostiles . | . . . . . Parts Fried . | . . . . . Impact Corruptions . | . . . . . Robots Melted . | . . . . . Combat Hostiles . | . . . . . Parts Melted 3 | . . . 2 1 Heat Transferred 1125 | . . . 792 333 Parts Sabotaged . | . . . . . Parts Stolen . | . . . . . Parts Stripped . | . . . . . Power Chain Reactions 1 | . . . 1 . Missiles Intercepted . | . . . . . Alert | -11 -10 -10 -9 -9 ------- Run | Scr Mat Min Mat Sto Peak Influence 487 | . 202 92 359 487 Initial 135 | . . 42 35 135 Average 189 | . 89 55 207 317 Maximum Alert Level 2 | . 1 . 1 2 Low Security (%) 55 | . 95 100 46 7 Level 1 40 | . 4 . 53 78 Level 2 4 | . . . . 14 Level 3 . | . . . . . Level 4 . | . . . . . Level 5 . | . . . . . High Security . | . . . . . Max Security . | . . . . . Squads Dispatched 3 | . 2 . . 1 Investigation 1 | . . . . 1 Extermination . | . . . . . Reinforcement 2 | . 2 . . . Assault . | . . . . . Garrison . | . . . . . Intercept . | . . . . . Searches Triggered . | . . . . . Construction Impeded . | . . . . . Haulers Reinforced . | . . . . . Active Scanning Responses . | . . . . . Cargo Convoy Interrupts . | . . . . . Stealth | -11 -10 -10 -9 -9 --------- Run | Scr Mat Min Mat Sto Distress Signals 5 | . 2 . 2 1 Communications Jammed . | . . . . . Distress Signals . | . . . . . Times Spotted 69 | . 23 2 20 24 Peak Tracking Total 6 | . 3 2 5 6 Tactical Retreats 3 | . 1 . 1 1 Traps | -11 -10 -10 -9 -9 ------- Run | Scr Mat Min Mat Sto Traps Triggered 4 | . 1 . . 3 Indirectly . | . . . . . Trap Hack Attempts . | . . . . . Triggered . | . . . . . Disarmed . | . . . . . Reprogrammed 5 | . . . 5 . Reused . | . . . . . Traps Extracted . | . . . . . Installed . | . . . . . Triggered . | . . . . . Machines | -11 -10 -10 -9 -9 ---------- Run | Scr Mat Min Mat Sto Machines Disabled 1 | . . . . 1 Max in Single Turn 1 | . . . . 1 Garrison Access 1 | . . . . 1 Machines Sabotaged . | . . . . . Garrisons Compromised . | . . . . . Overloaded Fab Kills . | . . . . . Hacking | -11 -10 -10 -9 -9 --------- Run | Scr Mat Min Mat Sto Machines Accessed 20 | . 6 . 7 7 Terminals 19 | . 6 . 7 6 Fabricators . | . . . . . Repair Stations . | . . . . . Recycling Units . | . . . . . Scanalyzers . | . . . . . Garrison Access 1 | . . . . 1 Total Hacks 45 | . 9 . 14 22 Successful 27 | . 7 . 9 11 Failed 18 | . 2 . 5 11 Catastrophic 3 | . . . 1 2 Database Lockouts . | . . . . . Manual 23 | . 7 . 7 9 Terminals 42 | . 9 . 14 19 Fabricators . | . . . . . Repair Stations . | . . . . . Recycling Units . | . . . . . Scanalyzers . | . . . . . Garrison Access 3 | . . . . 3 Terminal Hacks 15 | . 2 . 4 9 Robot Analysis 1 | . . . . 1 Prototype ID Bank 2 | . 1 . . 1 Open Door 1 | . . . . 1 Branch Access Points 2 | . 1 . 1 . Alert Level 3 | . . . . 3 Unreport Threat 1 | . . . . 1 Locate Traps 1 | . . . 1 . Reprogram Traps 1 | . . . 1 . Hauler Manifests 1 | . . . 1 . Zone Layout 2 | . . . . 2 Fabricator Hacks . | . . . . . Repair Station Hacks . | . . . . . Recycling Unit Hacks . | . . . . . Scanalyzer . | . . . . . Garrison Access Hacks 1 | . . . . 1 Seal Access 1 | . . . . 1 Unauthorized Hacks 11 | . 5 . 5 1 Terminals 11 | . 5 . 5 1 Botnet 11 | . 5 . 5 1 Fabricators . | . . . . . Repair Stations . | . . . . . Recycling Units . | . . . . . Scanalyzers . | . . . . . Garrison Access . | . . . . . Data Cores Recovered . | . . . . . Used . | . . . . . Hacking Detections 14 | . 4 . 4 6 Full Trace Events 4 | . . . 2 2 Feedback Events . | . . . . . Feedback Blocked . | . . . . . Robot Schematics Acquired . | . . . . . Robots Built . | . . . . . Authchips . | . . . . . Time . | . . . . . Total Robot Build Rating . | . . . . . Part Schematics Acquired . | . . . . . Parts Built . | . . . . . Authchips . | . . . . . Time . | . . . . . Total Part Build Rating . | . . . . . Parts Repaired . | . . . . . Time . | . . . . . Parts Recycled . | . . . . . Recycled Matter . | . . . . . Retrieved Matter . | . . . . . Retrieved Components . | . . . . . Parts Scanalyzed . | . . . . . Part Schematics Acquired . | . . . . . Parts Damaged . | . . . . . Bothacking | -11 -10 -10 -9 -9 ------------ Run | Scr Mat Min Mat Sto Used RIF Installer . | . . . . . Robots Hacked . | . . . . . Non-combat . | . . . . . Combat . | . . . . . Robot Hacks Applied . | . . . . . Relay Couplers Released . | . . . . . Fabnet Peak Effective % . | . . . . . Robots Rewired . | . . . . . Allies Hacked . | . . . . . Hacks Repelled . | . . . . . Allies | -11 -10 -10 -9 -9 -------- Run | Scr Mat Min Mat Sto Total Allies . | . . . . . Largest Group . | . . . . . Highest-Rated Group . | . . . . . Highest-Rated Ally . | . . . . . Total Orders . | . . . . . Ally Attacks . | . . . . . Total Damage . | . . . . . Kills . | . . . . . Allies Corrupted . | . . . . . Allies Melted . | . . . . . Intel | -11 -10 -10 -9 -9 ------- Run | Scr Mat Min Mat Sto Robot Analysis Total 1 | . . . . 1 Derelict Logs Recovered . | . . . . . Drone Launches . | . . . . . Drone Recoveries . | . . . . . Exploration | -11 -10 -10 -9 -9 ------------- Run | Scr Mat Min Mat Sto Turns Passed 2684 | . 962 163 742 817 Spaces Moved 1542 | 1 625 106 438 372 Core . | . . . . . Treads . | . . . . . Legs 1008 | 1 625 106 132 144 Wheels 534 | . . . 306 228 Hover . | . . . . . Flight . | . . . . . Fastest Speed 115 | 120 120 120 115 115 Average Speed 127 | 120 120 120 117 151 Slowest Speed 260 | 120 120 120 130 260 Overloaded Moves . | . . . . . Propulsion Burnouts . | . . . . . Robots Hopped . | . . . . . Cave-ins Triggered . | . . . . . Exploration Rate (%) 48 | 2 95 22 39 83 Regions Visited 4 Branch Regions 2 Pre-discovered Areas . | . . . . . Known Exits Taken 2 | . 1 . 1 . Unknown Exits Taken 2 | 1 . 1 . . Scrap Searched . | . . . . . Spaces Dug 4 | . . . . 4 Terrain Destroyed 18 | . . . 3 15 Melee . | . . . . . Projectile . | . . . . . AOE 18 | . . . 3 15 Terrain Rammed . | . . . . . Walls Destroyed . | . . . . . Machines Disabled . | . . . . . Actions | -11 -10 -10 -9 -9 --------- Run | Scr Mat Min Mat Sto Total 1989 | . 755 128 568 538 Wait 213 | . 63 11 59 80 Move 1538 | . 624 105 437 372 Hop . | . . . . . Pick Up 20 | . 5 . 6 9 Fast Attach 4 | . 2 . 2 . Attach 9 | . . . 4 5 Detach . | . . . . . Swap 27 | . 5 2 10 10 Drop 21 | . 9 2 2 8 Fire 149 | . 47 8 48 46 Melee . | . . . . . Ram . | . . . . . Kick . | . . . . . Crush . | . . . . . Escape Stasis 8 | . . . . 8 Rewire . | . . . . . Trap . | . . . . . Miscellaneous . | . . . . . Route ------- -11/Scrapyard -10/Materials (discovered 5 exits: *Mat x3 / *Min x2) -10/Mines -9/Materials (discovered 4 exits: [*Mat] / Min / *Sto x2) -9/Storage (discovered 2 exits: [*Mat] / *Rec) History --------- Turn | Location | Event 1 | -11/Scrapyard | Discovered new exit (range 0) 1 | -11/Scrapyard | Entered Materials 173 | -10/Materials | Discovered new exit (range 13) 312 | -10/Materials | Build established: Mutant 459 | -10/Materials | Discovered new exit (range 7) 528 | -10/Materials | Discovered new exit (range 15) 584 | -10/Materials | Discovered new exit (range 7) 832 | -10/Materials | Discovered new exit (range 4) 956 | -10/Materials | Identified exit to Mines 963 | -10/Materials | Entered Mines 973 | -10/Mines | Met a Derelict bent on vengeance 1086 | -10/Mines | Core integrity fell below 50% 1123 | -10/Mines | Discovered new exit (range 3) 1126 | -10/Mines | Entered Materials 1126 | -9/Materials | Evolved 2 slots: Utility x2 1145 | -9/Materials | Discovered new exit (range 10) 1157 | -9/Materials | Identified exit to Storage 1388 | -9/Materials | Identified exit to Mines 1558 | -9/Materials | Discovered new exit (range 8) 1703 | -9/Materials | Lost 3 parts (1u2w) 1868 | -9/Materials | Entered Storage 1919 | -9/Storage | Core integrity fell below 50% 2104 | -9/Storage | Used back door to open Recycling access 2104 | -9/Storage | Discovered new exit (range 4) 2107 | -9/Storage | Identified exit to Recycling 2357 | -9/Storage | Core integrity fell below 20% 2396 | -9/Storage | Lost 3 parts (1p1n1w) 2447 | -9/Storage | Discovered new exit (range 8) 2685 | -9/Storage | Destroyed by Y-45 Defender with Heavy Assault Rifle Last Messages --------------- 02581_ U-05 Engineer builds a Wall. 02584_ Acquired Prototype Flight Unit. 02586_ U-05 Engineer lays Concrete. 02587_ Acquired Prototype Flight Unit. 02587_ U-05 Engineer lays Concrete. 02588_ U-05 Engineer builds a Wall. 02592_ System corrupted: Heat flow error (+293). 02593_ U-05 Engineer builds a Wall. 02594_ U-05 Engineer lays Concrete. 02595_ Overheating: Energy bleed (-39). 02595_ Acquired 4 matter. 02614_ Transfer Shaft disabled. 02628_ System corrupted: Matter fused (-7). 02642_ Y-45 Defender destroyed. 02645_ Acquired 46 matter. 02653_ Dropped Hvy. Assault Rifle. 02673_ Connecting with Garrison Access... >>Seal Access door sealed. 02685_ Imp. Ion Engine destroyed. Map ----- +----------------------------------------------------+ | ???????????????????????????????? | | ???????????????????????????????? | | ???????????????????????????????? | | ???????????????????????????????? | | ???????????????????????????????? | | ???????????????????????????????? | | ???????????????????????????????? | | ???????????????????????????????? | | ???????????????????????????????? | | ???????????????????????????????? | | ???????????????????????????????? | | ???????????????????????????????? | | ???????????????????????????????? | | ???????????????????????????????? | | ???????????????????????????????? | | ???????????????????????????????? | | ???????????????????????????????? | | ??????????????###??????????????? | | ????????????### ####???????????? | | ????????????# #?????????? | | ????????????# """ #?????????? | | ????????????# """ #?????????? | | ?????#####??# """ #?????????? | | ?????#"""#??# #?????????? | | ?????#"G"#??# "" #?????????? | | ???###"@"#### """ #?????????? | | ???# Y # [ """ #?????????? | | ???# """"" # %= #?????????? | | ??# """"" #+###+###########+## | | ??## """"" # | | ???# + | | ???# """"" # | | ???# """"" ###+#+#########+#### | | ???? """"" ## # | | ????? ## """"= # | | ?????######### " [= # | | ?????????????# """" # | | ?????????????# """"" # | | ?????????????# " " # | | ?????????????# """"" # | | ?????????????# # | | ?????????????# #####+#### | | ?????????????######+###???# #### | | ??????????????????# #?????# | | ??????????????????# #??#### | | ??????????????###?# #??#""" """ | | ??????????##### ### #??#"R """ | | ??????????# ## ##?#""" """ | | ??????????#" ! # ###### | | ??????????#T ! + % | +----------------------------------------------------+ Best States ------------- Heat Dissipation 38 Energy Generation 12 Energy Capacity 265 Matter Stores 300 Matter Capacity 300 Sight Range 16 Terrain Scan Density 10 Evasion (%) 55 Targeting Accuracy 10 Item Schematics ----------------- None Robot Schematics ------------------ None Fabricated ------------ Nothing Alien Tech Used ----------------- None Achievements -------------- None Challenges ------------ None Game ------ Seed BarrageLargeRefractor Manual? 0 Play Time 00:22:21 Cumulative 67.0 hours Start 2022.07.04 @ 17:46:12 End 2022.07.04 @ 19:04:55 Sessions 1 Manual Loads 0 Difficulty Rogue Special Mode None Game No. 103 Rogue 103 Adventurer 0 Explorer 0 Win Type - Total 1 Types 1/0/0/0/0/0/0/0/0 Lore% 38 Gallery% 41 Achievement% 35 Wizard Run 0 Options --------- ASCII 0 Keyboard 1 Movement Vi Keybinds 1 Fullscreen 1 Font 24/Smallcaps Map View 76x50 Tactical HUD 1 Map Filters NONE Filters NONE Steam 1 RUN: a6062b25-4137-44f1-ace6-28a629d4fd20